[Event "FIDE WSTC-50-65 2022"]
[Site "Acqui Terme"]
[Date "2022.06.21"]
[Round "2.1"]
[White "Adams, Michael"]
[Black "Flear, Glenn C"]
[Result "1/2-1/2"]
[ECO "C77"]
[WhiteElo "2698"]
[BlackElo "2418"]
[Annotator "TA"]
[PlyCount "82"]
[EventDate "2022.06.20"]
[EventType "team-tourn"]
[EventCountry "ITA"]
[SourceTitle "playchess.com"]
[Source "ChessBase"]
[SourceQuality "1"]
[TimeControl "40/5400+30:1800+30"]

{[%evp 13,82,15,19,25,20,22,27,25,39,35,26,0,0,0,16,11,45,13,18,0,0,0,20,20,17,10,95,83,94,83,236,35,88,65,28,8,8,8,8,8,8,8,9,8,12,0,0,0,59,0,0,-8,-8,-12,-14,-50,-50,-68,-58,-502,-95,-133,-133,-105,-41,-34,0,-133,0,-59,0]} 1. e4 {[%emt 0:01:00]} e5 {[%emt 0:01:00]} 2. Nf3 {[%emt 0:00:00]} Nc6 {[%emt 0:00:00]} 3. Bb5 {[%emt 0:00:00][%cal Bf1b5,Bb5a4,Ba4b3][%mdl 32]} a6 {[%emt 0:00:00]} 4. Ba4 {[%emt 0:00:00]} Nf6 {[%emt 0:00:30]} 5. d3 {[%emt 0:00:00]} Bc5 {[%emt 0:02:30]} 6. c3 {[%emt 0:01:30]} b5 {[%emt 0:01:30]} 7. Bb3 {[%emt 0:00:30]} d6 {[%emt 0:00:30]} 8. Bg5 {[%emt 0:00:00][%cal Bc1g5,Bg5h4,Bh4g3][%mdl 32] C77: Ruy Lopez: 3...a6 4 Ba4 Nf6, unusual lines.} h6 {[%emt 0:02:30]} 9. Bh4 {[%emt 0:00:00]} g5 {[%emt 0:11:30]} 10. Bg3 {[%emt 0:00:30] White has an edge.} Be6 {[%emt 0:16:30] 10...Ba7 is the modern continuation.} 11. Bxe6 {[%emt 0:11:30]} fxe6 {[%emt 0:00:00]} 12. a4 {[%emt 0:00:30]} b4 {[%emt 0:08:00] [#]} 13. O-O $146 {[%emt 0:04:30]} ({Predecessor:} 13. a5 bxc3 14. bxc3 Ne7 15. Qa4+ Qd7 16. Qc4 Ba7 17. h4 g4 18. Nh2 Rg8 19. O-O {0-1 (33) Keetman,M (2144)-Lenaerts,L (2353) Maastricht 2022}) 13... bxc3 {[%emt 0:06:30]} 14. bxc3 {[%emt 0:00:00]} Qd7 {[%emt 0:05:30]} 15. Nbd2 {[%emt 0:07:00][%cal Od3d4]} O-O {[%emt 0:03:30]} 16. Nc4 {[%emt 0:03:30]} Ba7 {[%emt 0:04:30]} 17. Rb1 {[%emt 0:08:30]} Rab8 {[%emt 0:02:30]} 18. Rxb8 {[%emt 0:01:30]} Rxb8 {[%emt 0:00:30]} 19. Re1 {[%emt 0:00:30]} Qf7 {[%emt 0:03:30]} (19... g4 $11 20. Nfd2 Qg7) 20. d4 $1 $16 {[%emt 0:16:30][%cal Rd4e5]} exd4 {[%emt 0:11:38] aiming for ...e5.} 21. e5 $1 {[%emt 0:01:30]} Nd5 $2 {[%emt 0:01:33]} (21... Ne8 $16) 22. cxd4 $2 {[%emt 0:06:30]} (22. exd6 $18 {Hoping for Nfe5.} Nxc3 23. Qd3) 22... Rb4 $14 {[%emt 0:01:49]} 23. Qc1 {[%emt 0:06:30]} (23. Qe2 {is interesting.} dxe5 24. Ncxe5 Nxe5 25. Bxe5 Rxa4 26. Qc2) 23... Nxd4 {[%emt 0:05:11]} 24. Nxd4 {[%emt 0:05:30]} Bxd4 {[%emt 0:00:07]} 25. exd6 {[%emt 0:00:30]} cxd6 {[%emt 0:01:26]} ({Resist} 25... Rxa4 26. Qc2 Rb4 27. dxc7 Nxc7 28. Ne5 Bxe5 29. Bxe5 $16) 26. Nxd6 {[%emt 0:00:30]} Qc7 {[%emt 0:04:26]} 27. Qd1 {[%emt 0:08:25]} Bxf2+ $1 {[%emt 0:03:39]} 28. Bxf2 {[%emt 0:04:59]} Qxd6 {[%emt 0:00:05]} 29. g3 {[%emt 0:00:04] Threatens to win with Qd3.} Qc6 {[%emt 0:02:02]} 30. Qd3 {[%emt 0:04:20] Qg6+ is the strong threat.} Ne7 {[%emt 0:00:56] Against Qg6+} (30... Kg7 $1 $11) 31. a5 {[%emt 0:01:10]} ({White should play} 31. Qd8+ $14 Kf7 32. Rf1 (32. Bd4 e5 $11)) 31... Nf5 $36 {[%emt 0:00:26][%mdl 2048] White is under pressure.} 32. Rd1 {[%emt 0:02:26] And now Qd8+ would win.} Rc4 {[%emt 0:00:20]} (32... Rb2 $2 33. Qd8+ Kh7 34. Rd7+ Ng7 35. Rxg7+ $1 {[%mdl 512]} Kxg7 36. Qd4+ Kf7 37. Qxb2 $18) 33. Qd8+ {[%emt 0:02:50]} Kh7 {[%emt 0:00:08]} 34. Rd7+ {[%emt 0:03:24]} Ng7 {[%emt 0:00:35]} 35. Be3 {[%emt 0:00:29]} (35. Bd4 {is a self mate.} Rc1+ 36. Kf2 Qc2+ 37. Kf3 Rf1+) 35... Rc2 {[%emt 0:00:48][%csl Gc2][%cal Rc6g2]} 36. Bd2 $2 {[%emt 0:00:45][%mdl 8192]} (36. Bf2 $15) 36... Qc5+ $2 {[%emt 0:01:09]} (36... Qf3 $19 {is more deadly. Strongly threatening ...Ra2.} 37. Rd3 Qd1+ 38. Kf2 Rc5 39. Bxg5 Qh5) 37. Kf1 {[%emt 0:00:46]} Qf5+ {[%emt 0:00:31]} 38. Kg2 {[%emt 0:00:45]} Qe4+ {[%emt 0:00:25]} (38... g4 $17 39. Qa8 Rb2) 39. Kf2 $1 $15 {[%emt 0:00:02]} Qf5+ {[%emt 0:00:19]} ({Black should try} 39... Qb4 $15) 40. Kg2 $1 $17 {[%emt 0:00:00] [#]} Qe4+ {[%emt 0:00:00]} (40... g4 $1 $17 41. Qa8 Rb2) 41. Kf2 $1 $15 {[%emt 0:00:05]} Qf5+ {[%emt 0:04:27] Weighted Error Value: White=0.36/Black=0.43} (41... Qb4 $15 42. Kf3 Qb3+ 43. Kf2 Qb4) 1/2-1/2

[Event "FIDE WSTC-50-65 2022"]
[Site "Acqui Terme"]
[Date "2022.06.21"]
[Round "2.2"]
[White "Dishman, Stephen"]
[Black "Short, Nigel D"]
[Result "0-1"]
[ECO "A50"]
[WhiteElo "2301"]
[BlackElo "2622"]
[Annotator "TA"]
[PlyCount "92"]
[EventDate "2022.06.20"]
[EventType "team-tourn"]
[EventCountry "ITA"]
[SourceTitle "playchess.com"]
[Source "ChessBase"]
[SourceQuality "1"]
[TimeControl "40/5400+30:1800+30"]

{[%evp 16,92,15,15,13,6,15,13,18,20,22,17,22,28,27,13,19,23,91,79,70,70,69,69,152,161,156,130,167,127,129,127,126,133,114,44,59,31,23,26,33,12,14,0,0,-9,0,-67,-64,-55,-41,-92,-87,-107,-85,-266,-256,-241,-242,-237,-194,-351,-343,-352,-316,-384,-367,-478,-473,-478,-467,-667,-657,-631,-619,-589,-584,-566,-546]} 1. Nf3 {[%emt 0:01:00]} Nf6 {[%emt 0:01:00]} 2. c4 {[%emt 0:00:00]} b6 {[%emt 0:00:30]} 3. g3 {[%emt 0:00:00]} Bb7 {[%emt 0:00:30]} 4. Bg2 {[%emt 0:00:30]} g6 {[%emt 0:00:30]} 5. O-O {[%emt 0:01:30]} Bg7 {[%emt 0:00:30]} 6. Nc3 {[%emt 0:00:30]} O-O {[%emt 0:00:30]} 7. d4 {[%emt 0:03:30]} Ne4 {[%emt 0:00:30]} 8. Nxe4 {[%emt 0:07:30]} Bxe4 {[%emt 0:00:30]} 9. Be3 {[%emt 0:01:30]} d6 {[%emt 0:03:30] A50: Queen's Fianchetto Defence (1 d4 Nf6 2 c4 b6).} 10. Qd2 {[%emt 0:01:30]} c5 {[%emt 0:01:30]} 11. Bh6 {[%emt 0:06:30]} Nd7 {[%emt 0:02:30] The position is equal.} 12. Bxg7 {[%emt 0:02:30]} Kxg7 {[%emt 0:00:00]} 13. d5 {[%emt 0:03:30]} Nf6 {[%emt 0:09:00][%cal Ob6b5]} 14. Bh3 {[%emt 0:03:30]} b5 {[%emt 0:00:00]} 15. b3 {[%emt 0:01:30][%cal Bb2b3,Bb3c4][%mdl 32] [#]} bxc4 $146 {[%emt 0:11:00]} ({Predecessor:} 15... Bxf3 16. exf3 Rb8 17. Rfe1 Re8 18. Bf1 bxc4 19. Bxc4 e5 20. dxe6 d5 21. Bf1 fxe6 {0-1 (58) Kilgus,G (2404)-Baumegger,S (2452) Vienna 2012}) 16. bxc4 {[%emt 0:00:00]} Qb6 {[%emt 0:02:30]} (16... Bxf3 $11 17. exf3 Rb8) 17. Ne1 {[%emt 0:08:00]} Qb4 {[%emt 0:25:30]} 18. Qc1 {[%emt 0:02:30]} Rab8 {[%emt 0:00:30]} 19. f3 {[%emt 0:04:30]} Bxd5 {[%emt 0:00:30]} 20. cxd5 $16 {[%emt 0:00:30]} Nxd5 {[%emt 0:00:30]} 21. Nc2 {[%emt 0:06:30]} Qb2 {[%emt 0:02:30]} 22. Rf2 {[%emt 0:12:30]} f5 {[%emt 0:07:30]} 23. e3 {[%emt 0:05:30]} Qxc1+ {[%emt 0:05:30]} 24. Rxc1 {[%emt 0:00:00]} Rb2 {[%emt 0:00:30]} 25. a3 {[%emt 0:07:00]} ({White should try} 25. Na3 $16 Rxf2 26. Kxf2) 25... Rb3 $14 {[%emt 0:05:30]} 26. Re1 {[%emt 0:01:37]} Nc3 {[%emt 0:00:33]} 27. Bf1 {[%emt 0:02:14]} d5 {[%emt 0:00:27] Prevents Bc4.} 28. Ra1 {[%emt 0:05:19]} e5 {[%emt 0:02:48]} 29. Rd2 {[%emt 0:03:45][%cal Oe3e4]} Rb2 {[%emt 0:00:52]} 30. Rc1 {[%emt 0:04:18]} Rfb8 {[%emt 0:01:41]} 31. Kf2 {[%emt 0:01:41]} ({White must play} 31. g4 $1 $11) 31... e4 $15 {[%emt 0:02:21]} 32. Bg2 {[%emt 0:04:31]} Kf6 {[%emt 0:01:38]} 33. fxe4 {[%emt 0:00:22]} (33. Ke1 $15) 33... fxe4 $17 {[%emt 0:00:12]} 34. Ke1 {[%emt 0:00:47]} Ra2 {[%emt 0:07:07] 0x0.001b69558b1edp-1022s more active pieces.} 35. Nb4 $2 {[%emt 0:00:51]} Rxd2 $19 {[%emt 0:02:30]} 36. Kxd2 {[%emt 0:00:03]} cxb4 {[%emt 0:00:03]} 37. axb4 {[%emt 0:00:02][%mdl 4096] Endgame KRB-KRN} Nb5 {[%emt 0:01:16]} 38. Rc6+ $2 {[%emt 0:00:41]} (38. Bf1) 38... Ke5 {[%emt 0:00:56]} 39. Bh3 {[%emt 0:00:22][%csl Gh3][%cal Rc6e6] [#]} Rb6 {[%emt 0:00:09]} 40. Rc8 {[%emt 0:00:00]} Nd6 {[%emt 0:00:00][%csl LRb4,LRc8] Inhibits Re8+.} 41. Rc7 {[%emt 0:02:27]} Rb7 {[%emt 0:01:27] Black is clearly winning.} 42. Rxb7 {[%emt 0:02:30]} Nxb7 {[%emt 0:00:30]} 43. Kc3 {[%emt 0:00:30]} (43. Bg4 $142 Nd6 44. Bh3) 43... Nd6 {[%emt 0:00:00] [#] Threatens to win with ...Nc4.} 44. Bf1 {[%emt 0:00:30] Against Nc4} Nf5 {[%emt 0:00:00]} 45. Kd2 {[%emt 0:00:00]} d4 {[%emt 0:00:30]} 46. exd4+ {[%emt 0:00:00]} Kxd4 {[%emt 0:00:30] What a bad dream for White.  Weighted Error Value: White=0.34/Black=0.08 (flawless)} 0-1

[Event "FIDE WSTC-50-65 2022"]
[Site "Acqui Terme"]
[Date "2022.06.21"]
[Round "2.3"]
[White "Hebden, Mark L"]
[Black "Duncan, Chris R"]
[Result "1-0"]
[ECO "D12"]
[WhiteElo "2452"]
[BlackElo "2194"]
[Annotator "TA"]
[PlyCount "121"]
[EventDate "2022.06.20"]
[EventType "team-tourn"]
[EventCountry "ITA"]
[SourceTitle "playchess.com"]
[Source "ChessBase"]
[SourceQuality "1"]
[TimeControl "40/5400+30:1800+30"]

{[%evp 15,121,16,35,31,29,30,26,24,20,15,24,15,14,10,25,12,6,0,39,-35,-43,-46,-55,-81,-69,-77,-72,-68,-47,-33,-52,-75,-28,-79,-73,-96,-22,-37,-11,-28,-14,-17,10,16,8,0,65,0,134,139,147,127,110,104,201,193,186,172,1099,1099,1095,1044,1606,943,889,888,2091,2066,2024,2008,1989,1970,1840,1835,1114,1068,2341,648,498,481,439,425,520,433,406,330,658,653,631,593,1150,1285,2051,1931,1287,892,1783,1685,1537,1535,1885,1579,29971,29960,29992,29986,29978,29979]} 1. d4 {[%emt 0:01:00]} d5 {[%emt 0:01:00]} 2. Nf3 {[%emt 0:00:30]} Nf6 {[%emt 0:00:30]} 3. c4 {[%emt 0:00:30]} c6 {[%emt 0:00:00]} 4. e3 {[%emt 0:00:30]} Bf5 {[%emt 0:00:00]} 5. Nc3 {[%emt 0:00:30]} e6 {[%emt 0:00:30]} 6. Nh4 {[%emt 0:00:30]} Be4 {[%emt 0:00:00]} 7. f3 {[%emt 0:00:30]} Bg6 {[%emt 0:00:00]} 8. Qb3 {[%emt 0:01:30]} Qc7 {[%emt 0:00:30]} 9. Bd2 {[%emt 0:00:30] D12: Slav Defence: 3 Nf3 Nf6 4 e3 Bf5.} Be7 {[%emt 0:00:00]} 10. cxd5 {[%emt 0:00:30]} cxd5 {[%emt 0:01:00]} 11. Nxg6 {[%emt 0:00:30] White has an edge.} hxg6 {[%emt 0:00:00]} 12. O-O-O {[%emt 0:00:30]} Nc6 {[%emt 0:00:00]} 13. Kb1 {[%emt 0:00:30]} a6 {[%emt 0:00:30]} 14. Rc1 {[%emt 0:00:30]} Nd7 {[%emt 0:00:30]} 15. g3 {[%emt 0:05:30]} Rc8 {[%emt 0:11:30]} 16. Bd3 {[%emt 0:16:30] [#]} b5 $146 {[%emt 0:09:30] [#]} ({Predecessor:} 16... Na5 17. Qd1 Nc4 18. Rc2 b5 19. Bc1 Qb7 20. h4 b4 21. Na4 b3 22. axb3 Qxb3 23. Rc3 Qb5 24. e4 O-O 25. exd5 exd5 26. h5 g5 27. f4 Bb4 {½-½ (27) Haas,B (2346)-Jensen,B (2301) ICCF email 2019}) 17. Ne2 {[%emt 0:02:30]} (17. Nxb5 $1 $14 axb5 18. Bxb5) 17... Nb6 $15 {[%emt 0:02:30]} 18. e4 {[%emt 0:03:30]} Nc4 {[%emt 0:01:30]} 19. Bxc4 {[%emt 0:11:30]} bxc4 {[%emt 0:04:30]} 20. Qe3 {[%emt 0:01:30]} Rb8 {[%emt 0:05:30]} 21. h4 {[%emt 0:03:30]} Rb7 {[%emt 0:09:30]} 22. Bc3 {[%emt 0:02:30]} Qd6 {[%emt 0:07:30]} 23. Ka1 {[%emt 0:01:30]} Kd7 {[%emt 0:02:30]} (23... a5 $17) 24. e5 {[%emt 0:07:30]} (24. exd5 $11 {keeps the balance.} exd5 25. Qd2) 24... Qb8 $17 {[%emt 0:02:30]} 25. g4 {[%emt 0:00:30]} Nb4 {[%emt 0:02:30]} (25... a5 $17) 26. Bxb4 $11 {[%emt 0:03:30]} Rxb4 {[%emt 0:00:30]} 27. Qd2 {[%emt 0:01:30]} a5 {[%emt 0:09:30]} 28. f4 {[%emt 0:00:30]} Rh6 {[%emt 0:05:30]} ({Don't play} 28... Rxh4 29. Rxh4 Bxh4 30. g5 $16) 29. h5 {[%emt 0:01:30]} gxh5 {[%emt 0:00:30]} 30. gxh5 {[%emt 0:00:30][%cal Of4f5]} f5 {[%emt 0:13:23]} (30... Qh8 $11) 31. Rcg1 {[%emt 0:03:30]} ({White should try} 31. exf6 $1 $14 Rxf6 32. Rcg1) 31... Qh8 {[%emt 0:01:17]} (31... Bf8 $11 {remains equal.}) 32. a3 $16 {[%emt 0:04:30]} Rb5 {[%emt 0:01:55]} 33. Qd1 {[%emt 0:00:30]} Rb3 {[%emt 0:07:41][%cal Oe7a3] [#]} 34. Nc1 $1 {[%emt 0:00:30]} Rb6 {[%emt 0:02:11]} (34... Rb7 $16) 35. Qa4+ $18 {[%emt 0:01:30]} Rc6 {[%emt 0:00:02]} 36. Qxa5 {[%emt 0:05:30]} Rxh5 $2 {[%emt 0:00:22]} (36... Rh7 37. Qa7+ Rc7 38. Qa4+ Rc6) 37. Rxh5 {[%emt 0:00:46]} Qxh5 {[%emt 0:00:02]} 38. Rxg7 {[%emt 0:01:02]} Qe8 {[%emt 0:01:29]} 39. Ne2 {[%emt 0:02:36][%cal Bc1e2,Be2c3,Bc3b5][%mdl 32] Hoping for Nc3.} Qb8 {[%emt 0:00:32]} 40. Nc3 {[%emt 0:00:00][%cal Oc3d5] Nxd5! would kill now.} Qb6 {[%emt 0:00:00]} 41. Qa8 {[%emt 0:05:06]} Qd8 {[%emt 0:05:06]} 42. Qa4 {[%emt 0:02:30]} Qb6 {[%emt 0:14:05]} 43. Nb5 {[%emt 0:00:30]} c3 {[%emt 0:00:18]} 44. Nxc3 {[%emt 0:00:30]} Qc7 {[%emt 0:04:57]} 45. Kb1 {[%emt 0:15:30]} Ke8 {[%emt 0:03:26] [#]} 46. Qa8+ {[%emt 0:01:30]} (46. Nxd5 $142 $1 {[%mdl 512]} exd5 47. Rg6) 46... Qc8 {[%emt 0:00:10]} 47. Qxc8+ {[%emt 0:00:30]} ({Less strong is} 47. Qa7 Rc7 48. Qa4+ Kf8 $18) 47... Rxc8 {[%emt 0:00:03][%mdl 4096] Endgame KRB-KRN} 48. Kc2 {[%emt 0:00:00]} Kd7 {[%emt 0:00:26]} 49. Kd3 {[%emt 0:02:00]} Rh8 {[%emt 0:00:04]} 50. Na4 {[%emt 0:00:30]} Ke8 $2 {[%emt 0:00:30]} (50... Kd8 51. Rg6 Rh3+ 52. Ke2 Rh2+ 53. Kf3 Rh3+ 54. Rg3 Rh6) 51. Nc5 {[%emt 0:01:30]} Rh3+ {[%emt 0:00:16]} 52. Kc2 {[%emt 0:00:00]} Bxc5 {[%emt 0:00:25]} 53. dxc5 {[%emt 0:00:00][%cal Bd4c5,Bc5c6][%mdl 32] KR-KR} Rf3 {[%emt 0:00:07]} 54. c6 {[%emt 0:01:30] White threatens c7 and mate.} Kd8 {[%emt 0:00:04]} 55. b3 {[%emt 0:02:30][%cal Bb2b3,Bb3b4,Bb4b5,Bb5b6][%mdl 32] aiming for b4.} Rxf4 {[%emt 0:00:36]} 56. a4 {[%emt 0:00:30] And now a5 would win.} Rf2+ {[%emt 0:00:38]} 57. Kc3 {[%emt 0:00:30] Threatens to win with a5.} f4 {[%emt 0:00:03]} 58. b4 {[%emt 0:01:30] Threatening mate with b5.} f3 {[%emt 0:00:05]} 59. b5 {[%emt 0:01:45] White mates.} Ra2 {[%emt 0:00:06]} 60. c7+ {[%emt 0:01:44]} Kc8 {[%emt 0:00:08]} 61. b6 {[%emt 0:00:10] Weighted Error Value: White=0.26 (precise) /Black=0.40} 1-0

[Event "FIDE WSTC-50-65 2022"]
[Site "Acqui Terme"]
[Date "2022.06.21"]
[Round "2.4"]
[White "Frostick, Clive A"]
[Black "Emms, John M"]
[Result "0-1"]
[ECO "B51"]
[WhiteElo "2120"]
[BlackElo "2478"]
[Annotator "TA"]
[PlyCount "56"]
[EventDate "2022.06.20"]
[EventType "team-tourn"]
[EventCountry "ITA"]
[SourceTitle "playchess.com"]
[Source "ChessBase"]
[SourceQuality "1"]
[TimeControl "40/5400+30:1800+30"]

{[%evp 15,56,10,10,11,11,0,0,0,0,0,9,-41,13,-39,-35,-74,-33,-41,-55,-40,-34,-60,-59,-52,-10,-10,-6,-6,-4,-10,0,0,0,0,0,-10,-10,-10,35,0,-5,-456,-435]} 1. e4 {[%emt 0:01:00]} c5 {[%emt 0:01:00]} 2. Nf3 {[%emt 0:00:30]} d6 {[%emt 0:00:30]} 3. Bb5+ {[%emt 0:01:30]} Nd7 {[%emt 0:00:30]} 4. c3 {[%emt 0:05:30]} Ngf6 {[%emt 0:01:30]} 5. Qe2 {[%emt 0:01:30]} a6 {[%emt 0:00:30]} 6. Ba4 {[%emt 0:02:30]} e6 {[%emt 0:01:30]} 7. O-O {[%emt 0:11:30]} b5 {[%emt 0:00:30]} 8. Bc2 {[%emt 0:00:30]} Bb7 {[%emt 0:00:30]} 9. d4 {[%emt 0:11:30] B51: Sicilian: Moscow Variation (3 Bb5+) without 3...Bd7.} Be7 {[%emt 0:00:30]} 10. Nbd2 {[%emt 0:12:30]} Qc7 {[%emt 0:04:30]} 11. Bd3 {[%emt 0:00:30] The position is equal.} O-O {[%emt 0:00:30]} 12. Rd1 {[%emt 0:02:30]} e5 {[%emt 0:22:30] [#]} 13. Nf1 $146 {[%emt 0:05:30]} (13. d5 $11) ({Predecessor:} 13. d5 c4 14. Bc2 Rfb8 15. Nf1 a5 16. Ng3 g6 17. h4 b4 18. h5 Nc5 19. Ng5 {0-1 (33) Iordachescu,V (2651)-Korobov,A (2660) Moscow 2012}) 13... d5 {[%emt 0:30:30]} (13... exd4 $15 14. cxd4 c4) 14. exd5 {[%emt 0:12:30] [#]} ({White should play} 14. Nxe5 $1 $11 dxe4 15. Nxd7 Qxd7 16. Bc2) 14... exd4 $1 $15 {[%emt 0:01:30]} 15. cxd4 {[%emt 0:03:30]} ({Don't blunder} 15. Qxe7 $2 Rae8 16. d6 Qc8 17. cxd4 Rxe7 18. dxe7 Re8 19. dxc5 Bxf3 20. gxf3 Nxc5 $17) (15. Nxd4 Rfe8) 15... Rfe8 {[%emt 0:05:30]} 16. dxc5 {[%emt 0:08:47]} Bxc5 {[%emt 0:00:30]} 17. Be3 {[%emt 0:03:17]} Bxd5 {[%emt 0:07:54]} 18. Rac1 {[%emt 0:03:45] [#] Black must now prevent b4.} Qb7 {[%emt 0:02:28]} 19. Bf5 {[%emt 0:06:41]} Bxe3 {[%emt 0:03:21]} 20. Nxe3 {[%emt 0:02:01]} Nb6 {[%emt 0:01:10]} 21. b3 {[%emt 0:00:39] Prevents Nc4.} Rad8 {[%emt 0:05:15]} 22. Qc2 {[%emt 0:01:38]} Bxf3 {[%emt 0:01:01]} 23. Rxd8 {[%emt 0:00:14]} Rxd8 {[%emt 0:00:04]} 24. gxf3 {[%emt 0:00:04]} g6 {[%emt 0:04:51]} 25. Be4 {[%emt 0:01:02]} Qe7 {[%emt 0:01:26]} 26. Qc7 {[%emt 0:00:52]} Qd6 {[%emt 0:02:05]} 27. Qxd6 {[%emt 0:00:45]} (27. Qb7 $5 {[%cal Rc1c6]} Nxe4 28. fxe4 $11) 27... Rxd6 {[%emt 0:00:01]} 28. Rc6 $2 {[%emt 0:00:28][%mdl 8192]} (28. Bb7 $11 {and White is okay.}) 28... Nxe4 {[%emt 0:00:23] Weighted Error Value: White=0.50/Black=0.13 (very precise)} 0-1

[Event "FIDE WSTC-50-65 2022"]
[Site "Acqui Terme"]
[Date "2022.06.21"]
[Round "2.5"]
[White "Bischoff, Klaus"]
[Black "Kaidanov, Gregory"]
[Result "1/2-1/2"]
[ECO "D45"]
[WhiteElo "2493"]
[BlackElo "2556"]
[Annotator "TA"]
[PlyCount "74"]
[EventDate "2022.06.20"]
[EventType "team-tourn"]
[EventCountry "ITA"]
[SourceTitle "playchess.com"]
[Source "ChessBase"]
[SourceQuality "1"]
[TimeControl "40/5400+30:1800+30"]

{[%evp 20,74,10,0,10,-11,-11,-4,0,0,10,11,0,0,0,-16,6,-17,-12,-8,-18,-14,-8,-27,-10,-113,-129,-117,0,-6,10,21,30,8,60,46,46,15,20,16,88,59,54,0,120,110,191,183,173,193,214,102,175,192,189,0,0]} 1. d4 {[%emt 0:01:00]} d5 {[%emt 0:01:00]} 2. c4 {[%emt 0:00:00]} e6 {[%emt 0:00:00]} 3. Nc3 {[%emt 0:00:00]} c6 {[%emt 0:00:00]} 4. e3 {[%emt 0:00:30]} Nf6 {[%emt 0:00:00]} 5. Nf3 {[%emt 0:00:30]} Nbd7 {[%emt 0:00:00]} 6. Qc2 {[%emt 0:00:30]} Bd6 {[%emt 0:00:30]} 7. b3 {[%emt 0:01:30]} O-O {[%emt 0:00:30]} 8. Be2 {[%emt 0:00:30]} b6 {[%emt 0:00:00]} 9. O-O {[%emt 0:00:30]} Bb7 {[%emt 0:00:00]} 10. Bb2 {[%emt 0:00:30]} Qe7 {[%emt 0:01:30]} 11. Rad1 {[%emt 0:02:30]} Rad8 {[%emt 0:00:30] D45: Semi-Slav: 5 e3.} 12. cxd5 {[%emt 0:05:30]} exd5 {[%emt 0:00:30]} 13. Rfe1 {[%emt 0:00:30]} Rfe8 {[%emt 0:01:30]} 14. g3 {[%emt 0:02:30]} c5 {[%emt 0:11:30]} 15. Bf1 {[%emt 0:01:30]} Rc8 {[%emt 0:05:30]} 16. Qb1 $1 {[%emt 0:13:30][%mdl 4] is currently scoring better than 16.Bh3.} c4 {[%emt 0:15:30]} 17. Nd2 {[%emt 0:07:30][%cal Rb3c4] [#]} Bb4 $146 {[%emt 0:02:30]} ({Predecessor:} 17... cxb3 18. axb3 a6 19. Bh3 g6 20. Rc1 b5 21. Rc2 Rc7 22. Rec1 {½-½ (22) Lemanczyk,T (2357)-Larin,I (2313) LSS email 2014}) 18. Ba1 {[%emt 0:09:30]} b5 {[%emt 0:10:30]} 19. bxc4 {[%emt 0:00:30]} dxc4 {[%emt 0:00:30]} 20. e4 {[%emt 0:03:30]} Nb6 {[%emt 0:08:30]} 21. Bh3 {[%emt 0:07:30]} Rcd8 {[%emt 0:03:30]} 22. a3 {[%emt 0:05:30]} (22. Nxb5 $11 Bxd2 23. Rxd2) 22... Bxc3 $17 {[%emt 0:02:30]} (22... Bxa3 $6 23. Qxb5 Bb4 24. Nxc4 $11) 23. Bxc3 {[%emt 0:00:00][%cal Ba1c3,Bc3g7,Bg7d4][%mdl 32]} Na4 {[%emt 0:04:30]} ({Don't do} 23... Bxe4 24. Nxe4 Nxe4 25. Ba5 $14) (23... Nxe4 24. Bb4 Nxd2 25. Rxe7 $16) (23... Qxa3 $17 24. Re3 Nbd5) 24. Qa1 $11 {[%emt 0:04:00]} ({Reject} 24. Bb4 Qc7 25. d5 c3 $17) 24... Bc8 {[%emt 0:05:30]} ({Don't play} 24... Nxe4 25. Nxe4 Bxe4 26. f3 $16) (24... Bxe4 $2 25. f3 Nxc3 26. Qxc3 $16) 25. Bg2 {[%emt 0:01:30] Black must now prevent Ba5.} Qc7 {[%emt 0:02:30] Prevents Ba5.} 26. d5 {[%emt 0:01:30]} Ng4 {[%emt 0:00:30]} (26... Nxc3 $11 27. Qxc3 Qb6) 27. Bxg7 {[%emt 0:02:30] Strongly threatening Bd4.} c3 {[%emt 0:00:30] [#]} 28. Bd4 {[%emt 0:00:30] Hoping for Rc1. Dancing on a razor blade. A strong pair of Bishops.} cxd2 {[%emt 0:00:30]} 29. Rxd2 {[%emt 0:00:00] next Rc1 is good for White.} Nb6 {[%emt 0:03:30]} (29... Ne5 $1 $11) 30. Rc1 {[%emt 0:02:00][%mdl 1024] White has strong compensation.} Nc4 {[%emt 0:01:30]} 31. f4 {[%emt 0:04:30]} (31. f3 $14 Nge5 32. f4) 31... Qa5 {[%emt 0:04:12]} (31... f5 $11 32. h3 {[#]} Qf7 $1 33. Rxc4 bxc4 34. hxg4 fxe4) 32. Rd3 $16 {[%emt 0:00:30]} f5 {[%emt 0:01:54]} (32... h5 $16) 33. e5 $18 {[%emt 0:00:30]} Bb7 {[%emt 0:00:14]} 34. h3 {[%emt 0:02:30]} Bxd5 {[%emt 0:01:18]} 35. hxg4 {[%emt 0:01:30]} (35. Bxd5+ $18 Rxd5 36. hxg4) 35... Bxg2 {[%emt 0:00:05]} (35... Be4 $16 {was worth a try.} 36. Bxe4 fxe4) 36. Kxg2 {[%emt 0:00:30]} fxg4 {[%emt 0:01:42]} 37. Qc3 $2 {[%emt 0:10:11]} ({White should play} 37. Kg1 $18) 37... Qxc3 {[%emt 0:03:12] Weighted Error Value: White=0.24 (precise) /Black=0.38} 1/2-1/2